Workbook

Sheet штатное расписание
A9: Общество с ограниченной ответственностью "Марта"
A10: наименование организации
P11: Номер документа | U11: Дата составления
A12: ШТАТНОЕ РАСПИСАНИЕ | AC12: УТВЕРЖДАЮ
A13: на период | G13: с " | I13: " | N13: 20 | P13: г.
A14: Руководитель организации | AI14: Борисов С.А.
AC16: Штат в количестве | AI16: =Y29 -> 5.75 | AO16: единиц
A18: Структурное подразделение | K18: Должность (специальность, профессия), разряд, класс (категория) квалификации | Y18: Кол-во штатных единиц | AB18: Тарифная ставка (оклад) и пр., руб | AF18: Надбавки, руб | AO18: Всего, руб (гр.5 +гр.6+гр.7+гр.8) х гр.4 | AR18: Примечание
A19: наименование | H19: код
A20: 1 | H20: 2 | K20: 3 | Y20: 4 | AB20: 5 | AF20: 6 | AI20: 7 | AL20: 8 | AO20: 9 | AR20: 10
A21: Технический департамент | K21: старший инженер | Y21: 0.75 | AB21: 60000 | AF21: 10000 | AL21: 1400
A22: Технический департамент | K22: инженер | Y22: 2.5 | AB22: 40000
A23: Бухгалтерия | K23: главный бухгалтер | Y23: 1 | AB23: 50000
A24: Бухгалтерия | K24: бухгалтер | Y24: 1.5 | AB24: 30000
A29: Итого | Y29: =SUM(Y21:AA28) -> 5.75 | AB29: =SUM(AB21:AE28) -> 180000 | AF29: =SUM(AF21:AH28) -> 10000 | AI29: =SUM(AI21:AK28) -> 0 | AL29: =SUM(AL21:AN28) -> 1400 | AO29: =SUM(AO21:AQ28) -> 0
A30: Руководитель кадровой службы | AD30: Орлова Е.А.
A31: должность | W31: личная подпись | AD31: расшифровка подписи
AD32: Авдеева О.Г.
A33: Главный бухгалтер | W33: личная подпись | AD33: расшифровка подписи

Sheet штатная расстановка
A1: Общество с ограниченной ответственностью "Марта" | F1: Руководитель кадровой службы | G1: Орлова Е.А. | H1: Должность руководителя организации | I1: генеральный директор | J1: ФИО руководителя организации | K1: Борисов С.А. | L1: Главный бухгалтер | M1: Авдеева О.Г.
A2: Итого штатных единиц по организации | F2: =SUM(G11:G18) -> 5.75
A3: НАИМЕНОВАНИЕ СТРУКТУРНОГО ПОДРАЗДЕЛЕНИЯ / Аббревиатура | D3: Количество штатных единиц в подраздлении | E3: НАИМЕНОВАНИЕ ДОЛЖНОСТИ СОГЛАСНО ШТАТНОМУ РАСПИСАНИЮ | F3: СТАТУС ДОЛЖНОСТИ И РАБОТНИКА | J3: Ф.И.О. СОТРУДНИКА | K3: ПРИМЕЧАНИЕ ПО РАБОТНИКУ | L3: ПРИМЕЧАНИЕ ПО ОПЛАТЕ ТРУДА / УТВЕРЖДЕННЫЕ ПРЕДЕЛЫ ЗАРАБОТНОЙ ПЛАТЫ справочно ПО СЗ либо укажите иные условия | M3: УСЛОВИЯ СОГЛАСНО ТРУДОВОМУ ДОГОВОРУ (ШТАТНОЕ РАСПИСАНИЕ) gross | AC3: БАЗОВАЯ СТАВКА ПРЕМИИ gross | AG3: ВРЕМЕННАЯ ДОПЛАТА gross | AI3: ФОТ ПО ШТАТНОМУ РАСПИСАНИЮ | AJ3: Максимум по должности | AK3: Установлено сотруднику (с учетом занимаемой ставки, но без учета квартальной, полугодовой и годовой премии) | AL3: Установлено сотруднику (с учетом занимаемой ставки, c учетом квартальной, полугодовой и годовой премии) | AM3: Ежемесячная сумма на руки (за вычетом НДФЛ)
F4: ВИД ТРУДОВОГО ДОГОВОРА | G4: ЗАНЯТАЯ СТАВКА (ЗС) | H4: ДЕКРЕТНИЦЫ | I4: ВАКАНСИИ | M4: оклад | N4: ДОПЛАТА | O4: НАДБАВКИ | X4: % РАЙОН. КОЭФ-НТ | Y4: СУММА РАЙОННОГО КОЭФ-НТА | Z4: % НАДБАВКА | AA4: СУММА ПРОЦЕНТНОЙ НАДБАВКИ SПр | AB4: ВСЕГО gross согласно ТРУДОВОМУ ДОГОВОРУ | AC4: ЕЖЕМЕСЯЧНАЯ | AD4: КВАРТАЛЬНАЯ | AE4: ПОЛУГОДОВАЯ | AF4: ГОДОВАЯ | AG4: СУММА | AH4: ПЕРИОД ДОПЛАТЫ (00.00.00-00.00.00)
O5: НАДБАВКИ (ДЕЛЬТА) мин. - макс. | Q5: УТВ. СУММА НАДБАВКИ | R5: НАДБАВКИ 2 (ДЕЛЬТА) мин. - макс. | T5: УТВ. СУММА НАДБАВКИ 2 | U5: НАДБАВКИ 3 (ДЕЛЬТА) мин. - макс. | W5: УТВ. СУММА НАДБАВКИ 3
L6: ОБОЗНАЧЕНИЕ | M6: Ок | N6: Дп1к | O6: - | P6: - | Q6: Нд | R6: - | S6: - | T6: Нд | U6: - | V6: - | W6: Нд | X6: РК | Y6: SРК | Z6: Пр | AA6: SПр | AB6: ∑TDgr | AC6: М | AD6: Кв | AE6: Пг | AF6: Г | AG6: ВрД | AI6: ФОТ
L7: ФОРМУЛА РАСЧЕТА | O7: - | P7: - | Q7: - | R7: - | S7: - | T7: - | U7: - | V7: - | W7: - | X7: - | Y7: (Ок+Дп1к+Нд+M)*РК | Z7: - | AA7: (Ок+Дп1к+Нд)*Пр | AB7: Ок+Дп1к+Нд +SРК+SПр | AC7: - | AD7: - | AE7: - | AF7: - | AG7: -
G8: =SUM(G11:G19) -> 5.75 | H8: =SUM(H11:H19) -> 1.5 | I8: =SUM(I11:I19) -> 0.5 | L8: ИТОГОВАЯ СУММА ПО ОРГАНИЗАЦИИ | M8: =SUM(M11:M19) -> 320000 | N8: 20000 | O8: 5000 | P8: 10000 | Q8: 10000 | R8: 0 | S8: 0 | T8: 0 | U8: 0 | V8: 0 | W8: 0 | Y8: =SUM(Y11:Y19) -> 1400 | AA8: =SUM(AA11:AA19) -> 15000 | AB8: 274800 | AC8: 10000 | AD8: 30000 | AE8: 60000 | AF8: 60000 | AG8: 120000 | AI8: =SUM(AI11:AI19) -> 376400 | AJ8: =SUM(AJ11:AJ19) -> 110000 | AK8: =SUM(AK11:AK19) -> 282300 | AL8: =SUM(AL11:AL19) -> 484800 | AM8: =SUM(AM11:AM19) -> 245601
A9: выберите подразделение
A10: Склад | G10: =SUMIF($A11:$C19,$A$10,G11:G19) -> 0 | H10: =SUMIF($A11:$C19,$A$10,H11:H19) -> 0 | I10: =SUMIF($A11:$C19,$A$10,I11:I19) -> 0 | M10: =SUMIF($A11:$C19,$A$10,M11:M19) -> 0 | N10: 0 | O10: 0 | P10: 0 | Q10: 0 | R10: 0 | S10: 0 | T10: 0 | U10: 0 | V10: 0 | W10: 0 | Y10: =SUMIF($A11:$C19,$A$10,Y11:Y19) -> 0 | AA10: =SUMIF($A11:$C19,$A$10,AA11:AA19) -> 0 | AB10: 0 | AC10: 0 | AD10: 0 | AE10: 0 | AF10: 0 | AG10: 0 | AI10: =SUMIF($A11:$C19,$A$10,AI11:AI19) -> 0 | AJ10: =SUMIF($A11:$C19,$A$10,AJ11:AJ19) -> 0 | AK10: =SUMIF($A11:$C19,$A$10,AK11:AK19) -> 0 | AL10: =SUMIF($A11:$C19,$A$10,AL11:AL19) -> 0 | AM10: =SUMIF($A11:$C19,$A$10,AM11:AM19) -> 0
A11: Технический департамент | D11: =SUM(G11:G14) -> 3.25 | E11: старший инженер | F11: бессрочный | G11: 0.75 | H11: 0 | I11: 0 | J11: Иванов Андрей Викторович | M11: 60000 | N11: 20000 | O11: 5000 | P11: 10000 | Q11: 10000 | X11: 0.014 | Y11: =(M11+N11+Q11+T11+W11+AC11)*X11 -> 1400 | Z11: 0.15 | AA11: =(M11+N11+Q11+AC11)*Z11 -> 15000 | AB11: =(M11+N11+Q11+T11+W11+Y11+AA11)*G11 -> 79800 | AC11: 10000 | AD11: 30000 | AE11: 60000 | AF11: 60000 | AG11: 120000 | AI11: =M11+N11+Q11+T11+W11+Y11+AA11+AC11 -> 116400 | AJ11: 110000 | AK11: =G11*(M11+N11+Q11+T11+W11+Y11+AA11+AC11) -> 87300 | AL11: =G11*(M11+N11+Q11+T11+W11+Y11+AA11+AC11+AD11+AE11+AF11+AG11) -> 289800 | AM11: =AK11*0.87 -> 75951
A12: Технический департамент | E12: инженер | F12: бессрочный | G12: 0.5 | H12: 0 | I12: 0.5 | J12: Петров Леонид Васильевич | M12: 40000 | Y12: =(M12+N12+Q12+T12+W12+AC12)*X12 -> 0 | AA12: =(M12+N12+Q12+AC12)*Z12 -> 0 | AB12: =(M12+N12+Q12+T12+W12+Y12+AA12)*G12 -> 20000 | AI12: =M12+N12+Q12+T12+W12+Y12+AA12+AC12 -> 40000 | AK12: =G12*(M12+N12+Q12+T12+W12+Y12+AA12+AC12) -> 20000 | AL12: =G12*(M12+N12+Q12+T12+W12+Y12+AA12+AC12+AD12+AE12+AF12+AG12) -> 20000 | AM12: =AK12*0.87 -> 17400
A13: Технический департамент | E13: инженер | F13: бессрочный | G13: 1 | H13: 0 | I13: 0 | J13: Сидоров Антон Михайлович | M13: 40000 | Y13: =(M13+N13+Q13+T13+W13+AC13)*X13 -> 0 | AA13: =(M13+N13+Q13+AC13)*Z13 -> 0 | AB13: 40000 | AI13: 40000 | AK13: =G13*(M13+N13+Q13+T13+W13+Y13+AA13+AC13) -> 40000 | AL13: =G13*(M13+N13+Q13+T13+W13+Y13+AA13+AC13+AD13+AE13+AF13+AG13) -> 40000 | AM13: =AK13*0.87 -> 34800
A14: Технический департамент | E14: инженер | F14: бессрочный | G14: 1 | H14: 0 | I14: 0 | J14: Сидоров Антон Михайлович | M14: 40000 | Y14: =(M14+N14+Q14+T14+W14+AC14)*X14 -> 0 | AA14: =(M14+N14+Q14+AC14)*Z14 -> 0 | AB14: 40000 | AI14: 40000 | AK14: =G14*(M14+N14+Q14+T14+W14+Y14+AA14+AC14) -> 40000 | AL14: =G14*(M14+N14+Q14+T14+W14+Y14+AA14+AC14+AD14+AE14+AF14+AG14) -> 40000 | AM14: =AK14*0.87 -> 34800
A15: Бухгалтерия | D15: =SUM(G15:G18) -> 2.5 | E15: главный бухгалтер | F15: бессрочный | G15: 1 | H15: 0 | I15: 0 | J15: Авдеева Оксана Георгиевна | M15: 50000 | Y15: =(M15+N15+Q15+T15+W15+AC15)*X15 -> 0 | AA15: =(M15+N15+Q15+AC15)*Z15 -> 0 | AB15: 50000 | AI15: 50000 | AK15: =G15*(M15+N15+Q15+T15+W15+Y15+AA15+AC15) -> 50000 | AL15: =G15*(M15+N15+Q15+T15+W15+Y15+AA15+AC15+AD15+AE15+AF15+AG15) -> 50000 | AM15: =AK15*0.87 -> 43500
A16: Бухгалтерия | E16: бухгалтер | F16: срочный | G16: 1 | H16: 1 | I16: 0 | J16: Васильева Людмила Петровна | K16: до окончания отпуска по уходу за ребенком основного сотрудника | M16: 30000 | Y16: 0 | AA16: 0 | AB16: 30000 | AI16: 30000 | AK16: 30000 | AL16: 30000 | AM16: 26100
A17: Бухгалтерия | E17: бухгалтер | F17: бессрочный | G17: 0.5 | H17: 0.5 | I17: 0 | J17: Шишкина Антонина Алексеевна | M17: 30000 | Y17: 0 | AA17: 0 | AB17: 15000 | AI17: 30000 | AK17: 15000 | AL17: 15000 | AM17: 13050
A18: Бухгалтерия | E18: бухгалтер | F18: бессрочный | G18: 0 | H18: 0 | I18: 0 | K18: вакансия | M18: 30000 | Y18: 0 | AA18: 0 | AB18: 0 | AI18: 30000 | AK18: 0 | AL18: 0 | AM18: 0
Y19: =(M19+N19+Q19+T19+W19+AC19)*X19 -> 0 | AA19: =(M19+N19+Q19+AC19)*Z19 -> 0 | AB19: 0 | AI19: 0 | AK19: =G19*(M19+N19+Q19+T19+W19+Y19+AA19+AC19) -> 0 | AL19: =G19*(M19+N19+Q19+T19+W19+Y19+AA19+AC19+AD19+AE19+AF19+AG19) -> 0 | AM19: =AK19*0.87 -> 0

Sheet сформировать ШР
